Workbook

Sheet Product Selector Tool (hidden)
A1: Product Selector - Updated February 2020
B3: Introductory Questions
B4: 1) | C4: What Type Work Environment(s) do you have? (Check all that Apply) Drop Down Menu and only those checked are displayed
B5: 2) | C5: We are suggesting you take advantage of the benefits of SmartCompliance: Cost Savings, Convenient Re-ordering, Staying Compliant. We will demonstrate the cost savings a the end of the selection.
B6: 2a) | C6: Does your company dispense medications to your employees?
B7: 3) | C7: How many buildings do you have?
B8: 3a) | C8: What is the average number of floors per building?
B9: 3b) | C9: How many cabinets would be needed on an average floor in those building(s) that employees can reach a cabinet within 1 minute?
B10: 4) | C10: It looks like you need X first Aid Cabinets. How many of those X cabinets have Heavy usage? Medium Usage? Light Usage? The total should equal X
B11: 4a) | C11: Would you like to describe the locations to keep track of which cabinets go where?
B13: 5) | C13: Do you have any Special First Aid Need Areas (Check all the Apply) Drop Down menu of Eyewash, Burns, Bleeding Control
B14: 5a) | C14: We can review the OSHA regulations if you'd like for different types of first aid needs to help you decide on your needs
B15: 6) | C15: How many areas have these special first aid needs in all the buildings
B16: 6a) | C16: It looks like you need X first Aid Cabinets. How many of those X cabinets have heavy usage? Medium Usage? Light Usage? The total should equal X
A19: TYPE OF BUSINESS | B19: Number | C19: Number | D19: # of Locations to get | E19: Total # of | G19: Number of | H19: Approximate | I19: SC Kit Covers | J19: Medications | L19: Medications | N19: SC Kit Covers | O19: No Meds | Q19: No Medications | S19: Kit Covers | T19: Medications | V19: Medications | W19: Kit Covers | X19: No Medications | Z19: No Medications
B20: of Buildings | C20: of Floors | D20: 1 Min. Response Time | E20: Cabinets | F20: Usage | G20: Kits Each Type | H20: # of Employees | I20: # of Employees | J20: SmartCompliance | L20: Description SmartCompliance | M20: Cost | N20: # of Employees | O20: SmartCompliance | Q20: Description SmartCompliance | R20: Cost | S20: # of Employees | T20: Kit | V20: Description | W20: # of Employees | X20: Kit | Z20: Description
A21: Office | F21: Heavy | G21: 4 | H21: =G21*S21 -> 400 | I21: 150 | J21: 90732 | K21: https://www.firstaidonly.com/xl-cabinet-xl-smartcompliance-cabinet.html?___store=fao | L21: XL Metal SC with Meds, 909 pcs. | M21: 191.83 | N21: 150 | O21: 90829 | P21: https://www.firstaidonly.com/xl-smartcompliance-general-business-first-aid-cabinet-metal.html?___store=fao | Q21: XL Metal SC No Meds, 654 pcs. | R21: 191.83 | S21: 100 | T21: 90575 | U21: https://www.firstaidonly.com/3-shelf-first-aid-ansi-b-metal-cabinet-with-medication.html?___store=fao | V21: 3-Shelf Metal, ANSI B, 676 pcs. with Meds | W21: 100 | X21: 90790 | Y21: https://www.firstaidonly.com/3-shelf-first-aid-ansi-b-first-aid-metal-cabinet-without-medications.html?___store=fao | Z21: 3-Shelf Metal, ANSI B, 676 pcs. No Meds
B22: 1 | C22: 4 | D22: 3 | E22: =B22*C22*D22 -> 12 | F22: Medium | G22: 4 | H22: =G22*S22 -> 300 | I22: 50 | J22: 1000-FAE-0103 | K22: https://www.firstaidonly.com/large-smart-compliance-general-workplace-first-aid-plastic-cabinet-with-pain-relief.html?___store=fao | L22: Large Plastic SC with Meds, 245 pcs. | M22: 59.25 | N22: 50 | O22: 1001-FAE-0103 | P22: https://www.firstaidonly.com/large-plastic-smart-compliance-white-business-cabinet-with-carrying-handle.html?___store=fao | Q22: Large Plastic SC No Meds, 206 pcs. | R22: 59.25 | S22: 75 | T22: 90572 | U22: https://www.firstaidonly.com/2-shelf-first-aid-ansi-a-metal-cabinet-with-medications.html?___store=fao | V22: 2-Shelf Metal ANSI A , 347 pieces with Meds | W22: 75 | X22: 90603 | Y22: https://www.firstaidonly.com/2-shelf-first-aid-ansi-b-metal-cabinet.html?___store=fao | Z22: 2-Shelf Metal ANSI B+, 467 pieces No Meds
F23: Light | G23: 4 | H23: =G23*S23 -> 100 | I23: 25 | J23: 90578 | K23: https://www.firstaidonly.com/medium-metal-smart-compliance-cabinet-ansi-a-without-medications.html?___store=fao | L23: Medium Metal SC, No Meds, 94 pcs. | M23: 57.51 | N23: 25 | O23: 90578 | P23: https://www.firstaidonly.com/medium-metal-smart-compliance-cabinet-ansi-a-without-medications.html?___store=fao | Q23: Medium Metal SC, No Meds, 94 pcs. | R23: 57.51 | S23: 25 | T23: 223-U/FAO | U23: https://www.firstaidonly.com/25-person-first-aid-kit-plastic-case-with-dividers.html?___store=fao | V23: 25 Person Plastic Bulk, 106 pcs | W23: 25 | X23: 90562 | Y23: https://www.firstaidonly.com/25-person-first-aid-kit-ansi-a-plastic-case.html?___store=fao | Z23: 25 Person Plastic Bulk, 89 pcs, No Meds
G24: =E22-G21-G22-G23 -> 0 | H24: =SUM(H21:H23) -> 800
A25: Light Manufacturing | H25: =G25*S25 -> 0
B26: 2 | C26: 1 | D26: 4 | E26: =B26*C26*D26 -> 8 | F26: Medium | H26: =G26*S26 -> 0 | I26: 50 | J26: 746000 | K26: https://www.firstaidonly.com/large-metal-smart-compliance-first-aid-cabinet-ansi-a-compliant-with-medication.html?___store=fao | L26: Large Metal SC with Meds, 241 pcs. | M26: 86.29 | N26: 50 | O26: 746004 | P26: https://www.firstaidonly.com/large-metal-smart-compliance-first-aid-cabinet-ansi-a-compliant-without-medications.html?___store=fao | Q26: Large Metal SC No Meds, 202 pcs. | R26: 86.29 | S26: 75 | T26: 90572 | U26: https://www.firstaidonly.com/2-shelf-first-aid-ansi-a-metal-cabinet-with-medications.html?___store=fao | V26: 2-Shelf Metal ANSI A , 347 pieces with Meds | W26: 75 | X26: 90603 | Y26: https://www.firstaidonly.com/2-shelf-first-aid-ansi-b-metal-cabinet.html?___store=fao | Z26: 2-Shelf Metal ANSI B+, 467 pieces No Meds
F27: Light | H27: =G27*S27 -> 0 | I27: 25 | J27: 90578 | K27: https://www.firstaidonly.com/medium-metal-smart-compliance-cabinet-ansi-a-without-medications.html?___store=fao | L27: Medium Metal SC, No Meds, 94 pcs. | M27: 57.51 | N27: 25 | O27: 90578 | P27: https://www.firstaidonly.com/medium-metal-smart-compliance-cabinet-ansi-a-without-medications.html?___store=fao | Q27: Medium Metal SC, No Meds, 94 pcs. | R27: 57.51 | S27: 25 | T27: 90563 | U27: https://www.firstaidonly.com/25-person-first-aid-kit-ansi-a-plastic-case-2.html?___store=fao | V27: 25 Person Plastic Bulk, 141 pcs | W27: 25 | X27: 90562 | Y27: https://www.firstaidonly.com/25-person-first-aid-kit-ansi-a-plastic-case.html?___store=fao | Z27: 25 Person Plastic Bulk, 89 pcs
G28: =E26-G25-G26-G27 -> 8 | H28: =SUM(H25:H27) -> 0
A29: Heavy Manufacturing | F29: Very Heavy | H29: =G29*S29 -> 0 | I29: 200 | J29: 90832 | K29: https://www.firstaidonly.com/xxl-smartcompliance-general-business-first-aid-cabinet-with-medication.html?___store=fao | L29: XXL Metal SC with Meds, 1643 pcs. | M29: 191.83 | N29: 200 | O29: 90833 | P29: https://www.firstaidonly.com/xxl-smartcompliance-general-business-first-aid-cabinet-without-medication.html?___store=fao | Q29: XXL Metal SC No Meds, 728 pcs. | R29: 191.83 | S29: 200 | T29: 90577 | U29: https://www.firstaidonly.com/5-shelf-first-aid-ansi-b-metal-cabinet-with-medication.html?___store=fao | V29: 5-Shelf Metal ANSI B+, with Meds, 2134 pcs. | W29: 200 | X29: 90577 | Y29: https://www.firstaidonly.com/5-shelf-first-aid-ansi-b-metal-cabinet-with-medication.html?___store=fao | Z29: 5-Shelf Metal ANSI B+, WITH Meds, 2134 pcs.
E30: =B30*C30*D30 -> 0 | F30: Heavy | H30: =G30*S30 -> 0 | I30: 150 | J30: 90732 | K30: https://www.firstaidonly.com/xl-cabinet-xl-smartcompliance-cabinet.html?___store=fao | L30: XL Metal SC with Meds, 909 pcs. | M30: 191.83 | N30: 150 | O30: 90829 | P30: https://www.firstaidonly.com/xl-smartcompliance-general-business-first-aid-cabinet-metal.html?___store=fao | Q30: XL Metal SC No Meds, 654 pcs. | R30: 191.83 | S30: 150 | T30: 90576 | U30: https://www.firstaidonly.com/4-shelf-first-aid-ansi-b-metal-cabinet-with-medication.html?___store=fao | V30: 4-Shelf Metal ANSI B+, with Meds, 1461 pcs. | W30: 150 | X30: 90576 | Y30: https://www.firstaidonly.com/4-shelf-first-aid-ansi-b-metal-cabinet-with-medication.html?___store=fao | Z30: 4-Shelf Metal ANSI B+, WITH Meds, 1461 pcs.
H31: =G31*S31 -> 0
G32: =E30-G29-G30-G31 -> 0 | H32: =SUM(H29:H31) -> 0
A33: Warehouse | F33: Heavy | H33: =G33*S33 -> 0 | I33: 150 | J33: 90732 | K33: https://www.firstaidonly.com/xl-cabinet-xl-smartcompliance-cabinet.html?___store=fao | L33: XL Metal SC with Meds, 909 pcs. | M33: 191.83 | N33: 150 | O33: 90829 | P33: https://www.firstaidonly.com/xl-smartcompliance-general-business-first-aid-cabinet-metal.html?___store=fao | Q33: XL Metal SC No Meds, 654 pcs. | R33: 191.83 | S33: 100 | T33: 90575 | U33: https://www.firstaidonly.com/3-shelf-first-aid-ansi-b-metal-cabinet-with-medication.html?___store=fao | V33: 3-Shelf Metal, ANSI B, 676 pcs. with Meds | W33: 100 | X33: 90790 | Y33: https://www.firstaidonly.com/3-shelf-first-aid-ansi-b-first-aid-metal-cabinet-without-medications.html?___store=fao | Z33: 3-Shelf Metal, ANSI B, 676 pcs. No Meds
E34: =B34*C34*D34 -> 0 | F34: Medium | H34: =G34*S34 -> 0 | I34: 50 | J34: 746000 | K34: https://www.firstaidonly.com/large-metal-smart-compliance-first-aid-cabinet-ansi-a-compliant-with-medication.html?___store=fao | L34: Large Metal SC with Meds, 241 pcs. | M34: 86.29 | N34: 50 | O34: 746004 | P34: https://www.firstaidonly.com/large-metal-smart-compliance-first-aid-cabinet-ansi-a-compliant-without-medications.html?___store=fao | Q34: Large Metal SC No Meds, 202 pcs. | R34: 86.29 | S34: 75 | T34: 90572 | U34: https://www.firstaidonly.com/2-shelf-first-aid-ansi-a-metal-cabinet-with-medications.html?___store=fao | V34: 2-Shelf Metal ANSI A , 347 pieces with Meds | W34: 75 | X34: 90603 | Y34: https://www.firstaidonly.com/2-shelf-first-aid-ansi-b-metal-cabinet.html?___store=fao | Z34: 2-Shelf Metal ANSI B+, 467 pieces No Meds
F35: Light | H35: =G35*S35 -> 0 | I35: 25 | J35: 90578 | K35: https://www.firstaidonly.com/medium-metal-smart-compliance-cabinet-ansi-a-without-medications.html?___store=fao | L35: Medium Metal SC, No Meds, 94 pcs. | M35: 57.51 | N35: 25 | O35: 90578 | P35: https://www.firstaidonly.com/medium-metal-smart-compliance-cabinet-ansi-a-without-medications.html?___store=fao | Q35: Medium Metal SC, No Meds, 94 pcs. | R35: 57.51 | S35: 25 | T35: 224-U/FAO | U35: https://www.firstaidonly.com/25-person-first-aid-kit-metal-case.html?___store=fao | V35: 25-Person Metal, Bulk, 106 pcs. | W35: 25 | X35: 90560 | Y35: https://www.firstaidonly.com/25-person-first-aid-kit-ansi-a-metal-case.html?___store=fao | Z35: 25 Person Metal Bulk, 89 pcs, No Meds
G36: =E34-G33-G34-G35 -> 0 | H36: =SUM(H33:H35) -> 0
A37: Fleet Vehicles | F37: Heavy | H37: =G37*S37 -> 0 | I37: 25 | J37: 90578 | L37: Medium Metal SmartCompliance, 94 pcs. | M37: 57.51 | N37: 25 | O37: 90578 | Q37: Medium Metal SC No Meds, 94 pcs. | R37: 57.51 | S37: 50 | T37: 6450 | V37: 50-person Metal, OSHA, 246 pcs. NO MEDS | W37: 50 | X37: 6450 | Z37: 50-person Metal, OSHA, 246 pcs., No Meds
E38: =B38*C38*D38 -> 0 | F38: Medium | H38: =G38*S38 -> 0 | S38: 25 | T38: 90672 | V38: 25-person Metal, ANSI A, 114 pcs., Medications | W38: 25 | X38: 220-O | Z38: 25-person Plastic, OSHA, 85 pcs., No Meds
F39: Light | H39: =G39*S39 -> 0 | I39: 10 | J39: 91150 | L39: 10 person Bulk Plastic Case,89 pcs. | M39: 10.85 | N39: 10 | O39: 91150 | Q39: 10 person Bulk Plastic Case,89 pcs. | R39: 10.85 | S39: 10 | T39: 91150 | V39: 10 person Bulk Plastic Case,89 pcs., NO MEDS | W39: 10 | X39: 91150 | Z39: 10 person Bulk Plastic Case,89 pcs., No Meds
G40: =E38-G37-G38-G39 -> 0 | H40: =SUM(H37:H39) -> 0
A41: Food Service | F41: Heavy | H41: =G41*S41 -> 0 | I41: 150 | J41: 90830 | K41: https://www.firstaidonly.com/xl-smartcompliance-food-service-cabinet-with-medications-metal.html?___store=fao | L41: XL Metal SC with Meds, 937 pcs. | M41: 191.83 | N41: 150 | O41: 90831 | P41: https://www.firstaidonly.com/xl-smartcompliance-food-service-cabinet-without-medications-metal.html?___store=fao | Q41: XL Metal SC No Meds Meds, 697 pcs. | R41: 191.83
E42: =B42*C42*D42 -> 0 | F42: Medium | H42: =G42*S42 -> 0 | I42: 50 | J42: 746005 | K42: https://www.firstaidonly.com/large-metal-smart-compliance-food-service-first-aid-cabinet-ansi-a-compliant-with-medication.html?___store=fao | L42: Large Metal SC with Meds, 289 pcs. | M42: 86.29 | N42: 50 | O42: 746006 | P42: https://www.firstaidonly.com/large-metal-smart-compliance-food-service-first-aid-cabinet-ansi-a-compliant-without-medication.html?___store=fao | Q42: Large Metal SC No Meds Meds, 260 pcs. | R42: 86.29
F43: Light | H43: =G43*S43 -> 0 | I43: 25 | J43: 90578 | K43: https://www.firstaidonly.com/medium-metal-smart-compliance-cabinet-ansi-a-without-medications.html?___store=fao | L43: Medium Metal SC, No Meds, 94 pcs. | M43: 57.51 | N43: 25 | O43: 90578 | P43: https://www.firstaidonly.com/medium-metal-smart-compliance-cabinet-ansi-a-without-medications.html?___store=fao | Q43: Medium Metal SC, No Meds, 94 pcs. | R43: 57.51
G44: =E42-G41-G42-G43 -> 0 | H44: =SUM(H41:H43) -> 0
A46: SPECIAL FIRST AID NEED AREAS | H46: =H24+H28+H32+H36+H40+H44 -> 800 | I46: Total Employees
A48: BBP Kits
B49: =AVERAGE(B22, B26, B30, B34, B42) -> 1.5 | C49: =AVERAGE(C22, C26, C30, C34, C42) -> 2.5 | D49: 1 | E49: =B49*C49*D49 -> 3.75 | F49: Advanced | J49: 3060 | K49: N/A | L49: BBP and Protective Apparel in Plastic case - 32 pcs.
F50: Basic | J50: 214-U/FAO | K50: https://www.firstaidonly.com/wall-mount-blood-borne-pathogen-bbp-and-bodily-fluid-spill-kit-in-plastic-carry-case-osha-24-pieces-white.html?___store=fao | L50: BBP Spill Clean-Up Kit with Apparel- 23 pcs
G51: =E49-G48-G49-G50 -> 3.75
A52: First Responder Kit
B53: =B49 -> 1.5 | C53: =C49 -> 2.5 | D53: 1 | E53: =B53*C53*D53 -> 3.75 | F53: Advanced | J53: 91146 | K53: N/A | L53: Enhanced First Responder Kit, 168 pcs. Bleed & Burn
F54: Basic | J54: 520-FR | K54: https://www.firstaidonly.com/first-responder-kit-large-158-piece-bag.html?___store=fao | L54: Large First Responder Bag, 158 pcs.
G55: =E53-G52-G53-G54 -> 3.75
A56: Eyewash Station
E57: =B57*C57*D57 -> 0 | F57: Advanced | J57: 24-300 | K57: https://www.firstaidonly.com/eyewash-station-double-32-oz-screw-cap-bottle.html?___store=fao | L57: Double 32 oz. Station, Screw Cap
F58: Basic | J58: 24-102 | K58: https://www.firstaidonly.com/eyewash-station-double-16-oz-screw-cap-bottle.html?___store=fao | L58: Double 16 oz. Station, Screw Cap
G59: =E57-G56-G57-G58 -> 0
A60: Burn Kit
E61: =B61*C61*D61 -> 0 | F61: Advanced | J61: 36003 | K61: https://www.firstaidonly.com/waterjel-large-burn-kit-fabric-case.html?___store=fao | L61: WaterJel Large Burn Kit, 12 pcs.
F62: Basic | J62: 440-O/FAO | K62: https://www.firstaidonly.com/burn-care-kit-plastic-case.html?___store=fao | L62: Burn Care Kit, 11 pcs.
G63: =E61-G60-G61-G62 -> 0
A64: Bleeding Control
E65: =B65*C65*D65 -> 0 | F65: Advanced | J65: 91137 | K65: https://www.firstaidonly.com/enhanced-pro-bleeding-control-kit.html?___store=fao | L65: Enhanced Pro Bleeding Control Bag
F66: Basic | J66: 91135 | K66: https://www.firstaidonly.com/basic-pro-bleeding-control-kit.html?___store=fao | L66: Basic Pro Bleeding Control Pouch
G67: =E65-G64-G65-G66 -> 0
A68: Fleet Vehicles
E69: =B69*C69*D69 -> 0 | F69: Advanced | J69: 90672 | K69: https://www.firstaidonly.com/25-person-vehicle-ansi-a-first-aid-kit-metal-and-weatherproof-case.html?___store=fao | L69: 25-person Metal, ANSI A, 114 pcs., Medications
F70: Basic | J70: 91150 | K70: https://www.firstaidonly.com/10-person-plastic-light-duty-vehicle-first-aid-kit.html?___store=fao | L70: 10 person Bulk Plastic Case,89 pcs., NO MEDS
G71: =E69-G68-G69-G70 -> 0
F73: 4& 5 Shelf To Convert | J73: 91131 | K73: https://www.firstaidonly.com/smartcompliance-retrofit-business-without-medications-50-person-ansi-compliant.html?___store=fao | L73: RetroFit Grid, ANSI B, No Meds, 218 pcs
F74: 3-Shelf To Convert | J74: 91172 | K74: N/A | L74: RetroFit Grid, ANSI A, No Meds, 108 pcs
F75: 4& 5 Shelf Food Service to Convert | J75: 91132 | K75: https://www.firstaidonly.com/smartcompliance-retrofit-food-service-without-medications-50-person-ansi-compliant.html?___store=fao | L75: RetroFit Grid, ANSI B, No Meds, 262 pcs

Sheet Form
B2: Below is the First Aid Assessor developed by First Aid Only. It will help a business choose the
B3: right first aid products based on the business operations and size.
B5: To use the tool, simply answer the questions below and then switch to the "Output" worksheet and
B6: click the "Re-calcuate" button. You may click on an individual product hyperlink to learn more
B7: about a particular product. The Output sheet may also be saved as a pdf to be emailed out.
B10: 1. What Type Work Environment(s) do you have? (Check all that Apply)
C11: ü | D11: Office | G11: Warehouse
D12: Light Manufacturing | G12: Food Service
D13: Heavy Manufacturing
B17: 2. How many buildings do you have?
C18: 1
B22: 3. What is the total number of floors in all buildings?
C23: 1
J24: <<BACK | K24: NEXT>>
B27: 4. OSHA requires that employees are able to reach a first aid cabinet/kit in approximately one minute. How many
B28: first aid cabinets does your business need? If unsure, how many first cabinets/kits do you have today?
C29: 3
J30: <<BACK | K30: NEXT>>
B33: 5. Would you like ALL NEW cabinets or would you like to CONVERT some of these cabinets
B34: to the benefits of SmartCompliance without taking them off the wall? To convert a cabinet, it
B35: it must have 3 or more shelves that are at least 15" wide
D36: All New
C37: ü | D37: Convert Some
J38: <<BACK | K38: NEXT>>
B41: ="6. It looks like you need "&fourA&" First Aid Cabinets. Which size first aid cabinets or kits do" -> 6. It looks like you need 3 First Aid Cabinets. Which size first aid cabinets or kits do
B42: you need including ones you want to CONVERT? You can base it on Persons served OR cabinet Usage (i.e. Heavy)
B43: NEW CABINETS | D43: VeryHeavy. 200+ Person | E43: Heavy. 100-150 Person | F43: Medium. 50-75 Person | H43: Light. 25 Person
C44: Office | E44: 1 | H44: 1
C45: LightManufacturing
C46: HeavyManufacturing
C47: Warehouse
C48: FoodService
D49: =D46 -> 0 | E49: =E44+E46+E47+E48 -> 1 | F49: =F44+F45+F47+F48 -> 0 | H49: =H44+H45+H47+H48 -> 1
B51: CABINET TO CONVERT | E51: 4 or 5 Shelf Cabinet to Convert | H51: 3 Shelf Cabinet to Convert | I51: Number of Products
E52: 1 | I52: Needed
I53: =SUM(D44:H44)+SUM(F45:H45)+SUM(D46:E46)+SUM(E47:H48)+SUM(E52+H52)&" of "&fourA&" Needed" -> 3 of 3 Needed
B57: 7. Would you like to describe the locations to keep track of which cabinets…which cabinets will be
B58: placed where in the building(s). (OPTIONAL)
C59: =REPT(C46&"-"&LEFT(D43,FIND(".",D43)-1)&",",D46)&REPT(C44&"-"&LEFT(E43,FIND(".",E43)-1)&",",E44)&REPT(C46&"-"&LEFT(E43,FIND(".",E43)-1)&",",E46)&REPT(C47&"-"&LEFT(E43,FIND(".",E43)-1)&",",E47)&REPT(C48&"-"&LEFT(E43,FIND(".",E43)-1)&",",E48)&REPT(C44&"-"&LEFT(F43,FIND(".",F43)-1)&",",F44)&REPT(C45&"-"&LEFT(F43,FIND(".",F43)-1)&",",F45)&REPT(C47&"-"&LEFT(F43,FIND(".",F43)-1)&",",F47)&REPT(C48&"-"&LEFT(F43,FIND(".",F43)-1)&",",F48)&REPT(C44&"-"&LEFT(H43,FIND(".",H43)-1)&",",H44)&REPT(C45&"-"&LEFT(H43,FIND(".",H43)-1)&",",H45)&REPT(C47&"-"&LEFT(H43,FIND(".",H43)-1)&",",H47)&REPT(C48&"-"&LEFT(H43,FIND(".",H43)-1)&",",H48)&REPT("4or5 Shelf,",six45Shelf)&REPT("3 Shelf,",six3Shelf) -> Office-Heavy,Office-Light,4or5 Shelf,
B60: Office-Heavy
B61: HeavyManufacturing-Heavy
B62: Warehouse-Heavy
B63: Office-Light
B64: 4or5 Shelf
B65: 4or5 Shelf
B66: 4or5 Shelf
B67: 3 Shelf
B68: 3 Shelf
B163: 7. Does your company dispense medications to your employees?
D164: Yes
C165: ü | D165: No
B169: 8. Do you have any Supplemental First Aid Need Areas (Check all the Apply)
C170: ü | D170: Eyewash
D171: Burns
D172: Bleeding Control
C173: ü | D173: Fleet Vehicles
B176: 9. How many areas or vehicles have these Supplemental First Aid Needs in all the buildings
B177: Eyewash | C177: 1
B178: Burns
B179: Bleeding Control
B180: Fleet Vehicles | C180: 1
B183: 10. We can review the OSHA regulations if you'd like for different types
B184: of first aid needs to help you decide on your needs
D185: Link to OSHA Rules
B188: 11. Let's review your Supplemental First Aid needs. We recommend BBP and First Responder kits for every
B189: business.
B190: Please fill in orange cells with numbers until you fulfill the number that's needed. When complete, it will change to black
D191: Standard | E191: Advanced | F191: Advanced Kits contain the following:
C192: BBP Kit | D192: 1 | E192: 1 | F192: Extra clean-up items and easy to re-order boxes | I192: =SUM(D192:E192)&" of "&ROUNDUP(fourA/2,0)&" Needed" -> 2 of 2 Needed
C193: First Responder Kit | E193: 1 | F193: Windlass tourniquet & Burn Dressing | I193: =SUM(D193:E193)&" of "&threeA&" Needed" -> 1 of 1 Needed
C194: Eyewash Station | D194: 1 | F194: Two 32 oz. bottles vs. 16 oz. bottles (Standard) | I194: =SUM(D194:E194)&" of "&SUM(C177)&" Needed" -> 1 of 1 Needed
C195: Burn Kit | F195: 7 Burn Dressings vs. 3 burn dressings (Standard) | I195: =SUM(D195:E195)&" of "&SUM(C178)&" Needed" -> 0 of 0 Needed
C196: Bleeding Control | F196: Hemostatic Gauze and Chest Seals | I196: =SUM(D196:E196)&" of "&SUM(C179)&" Needed" -> 0 of 0 Needed
C197: Fleet Vehicles | E197: 1 | F197: CPR face shield and medications | I197: =SUM(D197:E197)&" of "&SUM(C180)&" Needed" -> 1 of 1 Needed
B200: We are suggesting you take advantage of the benefits of SmartCompliance:
B201: Cost Savings, Convenient Re-ordering, Staying Compliant. We will demonstrate
B202: the cost savings at the end of the selection.
B205: 12. Do you want to use SmartCompliance?
C206: ü | D206: Yes
D207: No
B211: 13. SmartCompliance Cost Calculator
B212: # of Cabinets | E212: =fourA -> 3
B214: Current First Aid Monthly Spend | E214: 350
D216: Initial Investment | E216: =(D49*468.94)+(E49*426.4)+(F49*191.78)+(H49*127.82)+(six45Shelf*149.9)+(six3Shelf*99.98) -> 704.12
B217: First Year Savings | E217: =E218-E216+(E212*2.5*4.42) -> 3131.23
B218: Estimated Annual Savings | E218: =((E214*3*4)-(E212*2.5*4.42*12)) -> 3802.2
B219: This is an ESTIMATED savings for using SmartCompliance. Your actual savings may differ slightly.

Sheet Output
A1: First Aid Assessor Recommended Product Offering
A2: Please click the "Re-Calculate" button to review your recommended products based on your business parameter. Items may be added or removed, Document may be saved as a pdf. Pricing provided separately.
A3: Company Name:
A4: Filled out By (name, contact information):
A5: Date:
A7: Type of First Aid Need | B7: Product Location | C7: Kit # | D7: Description | E7: Qty | F7: Link
A8: Office | B8: 0 | C8: 90829 | D8: XL Metal SC No Meds, 654 pcs. | E8: 1 | F8: https://www.firstaidonly.com/xl-smartcompliance-general-business-first-aid-cabinet-metal.html?___store=fao
A9: Office | B9: 0 | C9: 90578 | D9: Medium Metal SC, No Meds, 94 pcs. | E9: 1 | F9: https://www.firstaidonly.com/medium-metal-smart-compliance-cabinet-ansi-a-without-medications.html?___store=fao
A10: BBPKit | C10: 3060 | D10: BBP and Protective Apparel in Plastic case - 32 pcs. | E10: 1 | F10: N/A
A11: BBPKit | C11: 214-U/FAO | D11: BBP Spill Clean-Up Kit with Apparel- 23 pcs | E11: 1 | F11: https://www.firstaidonly.com/wall-mount-blood-borne-pathogen-bbp-and-bodily-fluid-spill-kit-in-plastic-carry-case-osha-24-pieces-white.html?___store=fao
A12: FirstResponderKit | C12: 91146 | D12: Enhanced First Responder Kit, 168 pcs. Bleed & Burn | E12: 1 | F12: N/A
A13: EyewashStation | C13: 24-102 | D13: Double 16 oz. Station, Screw Cap | E13: 1 | F13: https://www.firstaidonly.com/eyewash-station-double-16-oz-screw-cap-bottle.html?___store=fao
A14: FleetVehicles | C14: 90672 | D14: 25-person Metal, ANSI A, 114 pcs., Medications | E14: 1 | F14: https://www.firstaidonly.com/25-person-vehicle-ansi-a-first-aid-kit-metal-and-weatherproof-case.html?___store=fao
A15: Shelf | B15: 0 | C15: 91131 | D15: RetroFit Grid, ANSI B, No Meds, 218 pcs | E15: 1 | F15: https://www.firstaidonly.com/smartcompliance-retrofit-business-without-medications-50-person-ansi-compliant.html?___store=fao

Sheet INPUTS (hidden)
A1: SmartCompliance Cabinet Size | B1: MSRP
A2: Heavy | B2: 426.4
A3: Medium | B3: 191.78
A4: Light | B4: 127.82
A5: Retrofit - ANSI Class B | B5: 149.9

Sheet Data (hidden)
A1: SmartCompliance | B1: Medications | C1: Usage | D1: # of EE | E1: Shelf | F1: Type of Business | G1: Label | H1: Kit # | I1: Description | J1: Qty | K1: Link | L1: Unit Cost | M1: Total Cost
A2: Yes | B2: Yes | C2: Heavy | D2: 150 | F2: Office | G2: =IFERROR(INDEX(Form!E$60:E$159,MATCH(tblData[[#This Row],[Type of Business]]&"-"&tblData[[#This Row],[Usage]],Form!B$60:B$159,0)),"") -> 0 | H2: 90732 | I2: XL Metal SC with Meds, 909 pcs. | J2: =IF(AND(INDIRECT("one"&tblData[[#This Row],[Type of Business]])="ü",eightA=IF(tblData[[#This Row],[Medications]]="Yes","ü",""),thirteenA=IF(tblData[[#This Row],[SmartCompliance]]="Yes","ü","")),INDIRECT("six"&tblData[[#This Row],[Type of Business]]&tblData[[#This Row],[Usage]]),0) -> 0 | K2: https://www.firstaidonly.com/xl-cabinet-xl-smartcompliance-cabinet.html?___store=fao | L2: 191.83 | M2: =tblData[[#This Row],[Qty]]*tblData[[#This Row],[Unit Cost]] -> 0
A3: Yes | B3: Yes | C3: Medium | D3: 50 | F3: Office | G3: =IFERROR(INDEX(Form!E$60:E$159,MATCH(tblData[[#This Row],[Type of Business]]&"-"&tblData[[#This Row],[Usage]],Form!B$60:B$159,0)),"") ->  | H3: 1000-FAE-0103 | I3: Large Plastic SC with Meds, 245 pcs. | J3: =IF(AND(INDIRECT("one"&tblData[[#This Row],[Type of Business]])="ü",eightA=IF(tblData[[#This Row],[Medications]]="Yes","ü",""),thirteenA=IF(tblData[[#This Row],[SmartCompliance]]="Yes","ü","")),INDIRECT("six"&tblData[[#This Row],[Type of Business]]&tblData[[#This Row],[Usage]]),0) -> 0 | K3: https://www.firstaidonly.com/large-smart-compliance-general-workplace-first-aid-plastic-cabinet-with-pain-relief.html?___store=fao | L3: 59.25 | M3: =tblData[[#This Row],[Qty]]*tblData[[#This Row],[Unit Cost]] -> 0
A4: Yes | B4: Yes | C4: Light | D4: 25 | F4: Office | G4: =IFERROR(INDEX(Form!E$60:E$159,MATCH(tblData[[#This Row],[Type of Business]]&"-"&tblData[[#This Row],[Usage]],Form!B$60:B$159,0)),"") -> 0 | H4: 90578 | I4: Medium Metal SC, No Meds, 94 pcs. | J4: =IF(AND(INDIRECT("one"&tblData[[#This Row],[Type of Business]])="ü",eightA=IF(tblData[[#This Row],[Medications]]="Yes","ü",""),thirteenA=IF(tblData[[#This Row],[SmartCompliance]]="Yes","ü","")),INDIRECT("six"&tblData[[#This Row],[Type of Business]]&tblData[[#This Row],[Usage]]),0) -> 0 | K4: https://www.firstaidonly.com/medium-metal-smart-compliance-cabinet-ansi-a-without-medications.html?___store=fao | L4: 57.51 | M4: =tblData[[#This Row],[Qty]]*tblData[[#This Row],[Unit Cost]] -> 0
A5: Yes | B5: Yes | C5: Medium | D5: 50 | F5: LightManufacturing | G5: =IFERROR(INDEX(Form!E$60:E$159,MATCH(tblData[[#This Row],[Type of Business]]&"-"&tblData[[#This Row],[Usage]],Form!B$60:B$159,0)),"") ->  | H5: 746000 | I5: Large Metal SC with Meds, 241 pcs. | J5: =IF(AND(INDIRECT("one"&tblData[[#This Row],[Type of Business]])="ü",eightA=IF(tblData[[#This Row],[Medications]]="Yes","ü",""),thirteenA=IF(tblData[[#This Row],[SmartCompliance]]="Yes","ü","")),INDIRECT("six"&tblData[[#This Row],[Type of Business]]&tblData[[#This Row],[Usage]]),0) -> 0 | K5: https://www.firstaidonly.com/large-metal-smart-compliance-first-aid-cabinet-ansi-a-compliant-with-medication.html?___store=fao | L5: 86.29 | M5: =tblData[[#This Row],[Qty]]*tblData[[#This Row],[Unit Cost]] -> 0
A6: Yes | B6: Yes | C6: Light | D6: 25 | F6: LightManufacturing | G6: =IFERROR(INDEX(Form!E$60:E$159,MATCH(tblData[[#This Row],[Type of Business]]&"-"&tblData[[#This Row],[Usage]],Form!B$60:B$159,0)),"") ->  | H6: 90578 | I6: Medium Metal SC, No Meds, 94 pcs. | J6: =IF(AND(INDIRECT("one"&tblData[[#This Row],[Type of Business]])="ü",eightA=IF(tblData[[#This Row],[Medications]]="Yes","ü",""),thirteenA=IF(tblData[[#This Row],[SmartCompliance]]="Yes","ü","")),INDIRECT("six"&tblData[[#This Row],[Type of Business]]&tblData[[#This Row],[Usage]]),0) -> 0 | K6: https://www.firstaidonly.com/medium-metal-smart-compliance-cabinet-ansi-a-without-medications.html?___store=fao | L6: 57.51 | M6: =tblData[[#This Row],[Qty]]*tblData[[#This Row],[Unit Cost]] -> 0
A7: Yes | B7: Yes | C7: VeryHeavy | D7: 200 | F7: HeavyManufacturing | G7: =IFERROR(INDEX(Form!E$60:E$159,MATCH(tblData[[#This Row],[Type of Business]]&"-"&tblData[[#This Row],[Usage]],Form!B$60:B$159,0)),"") ->  | H7: 90832 | I7: XXL Metal SC with Meds, 1643 pcs. | J7: =IF(AND(INDIRECT("one"&tblData[[#This Row],[Type of Business]])="ü",eightA=IF(tblData[[#This Row],[Medications]]="Yes","ü",""),thirteenA=IF(tblData[[#This Row],[SmartCompliance]]="Yes","ü","")),INDIRECT("six"&tblData[[#This Row],[Type of Business]]&tblData[[#This Row],[Usage]]),0) -> 0 | K7: https://www.firstaidonly.com/xxl-smartcompliance-general-business-first-aid-cabinet-with-medication.html?___store=fao | L7: 191.83 | M7: =tblData[[#This Row],[Qty]]*tblData[[#This Row],[Unit Cost]] -> 0
A8: Yes | B8: Yes | C8: Heavy | D8: 150 | F8: HeavyManufacturing | G8: =IFERROR(INDEX(Form!E$60:E$159,MATCH(tblData[[#This Row],[Type of Business]]&"-"&tblData[[#This Row],[Usage]],Form!B$60:B$159,0)),"") -> 0 | H8: 90732 | I8: XL Metal SC with Meds, 909 pcs. | J8: =IF(AND(INDIRECT("one"&tblData[[#This Row],[Type of Business]])="ü",eightA=IF(tblData[[#This Row],[Medications]]="Yes","ü",""),thirteenA=IF(tblData[[#This Row],[SmartCompliance]]="Yes","ü","")),INDIRECT("six"&tblData[[#This Row],[Type of Business]]&tblData[[#This Row],[Usage]]),0) -> 0 | K8: https://www.firstaidonly.com/xl-cabinet-xl-smartcompliance-cabinet.html?___store=fao | L8: 191.83 | M8: =tblData[[#This Row],[Qty]]*tblData[[#This Row],[Unit Cost]] -> 0
A9: Yes | B9: Yes | C9: Heavy | D9: 150 | F9: Warehouse | G9: =IFERROR(INDEX(Form!E$60:E$159,MATCH(tblData[[#This Row],[Type of Business]]&"-"&tblData[[#This Row],[Usage]],Form!B$60:B$159,0)),"") -> 0 | H9: 90732 | I9: XL Metal SC with Meds, 909 pcs. | J9: =IF(AND(INDIRECT("one"&tblData[[#This Row],[Type of Business]])="ü",eightA=IF(tblData[[#This Row],[Medications]]="Yes","ü",""),thirteenA=IF(tblData[[#This Row],[SmartCompliance]]="Yes","ü","")),INDIRECT("six"&tblData[[#This Row],[Type of Business]]&tblData[[#This Row],[Usage]]),0) -> 0 | K9: https://www.firstaidonly.com/xl-cabinet-xl-smartcompliance-cabinet.html?___store=fao | L9: 191.83 | M9: =tblData[[#This Row],[Qty]]*tblData[[#This Row],[Unit Cost]] -> 0
A10: Yes | B10: Yes | C10: Medium | D10: 50 | F10: Warehouse | G10: =IFERROR(INDEX(Form!E$60:E$159,MATCH(tblData[[#This Row],[Type of Business]]&"-"&tblData[[#This Row],[Usage]],Form!B$60:B$159,0)),"") ->  | H10: 746000 | I10: Large Metal SC with Meds, 241 pcs. | J10: =IF(AND(INDIRECT("one"&tblData[[#This Row],[Type of Business]])="ü",eightA=IF(tblData[[#This Row],[Medications]]="Yes","ü",""),thirteenA=IF(tblData[[#This Row],[SmartCompliance]]="Yes","ü","")),INDIRECT("six"&tblData[[#This Row],[Type of Business]]&tblData[[#This Row],[Usage]]),0) -> 0 | K10: https://www.firstaidonly.com/large-metal-smart-compliance-first-aid-cabinet-ansi-a-compliant-with-medication.html?___store=fao | L10: 86.29 | M10: =tblData[[#This Row],[Qty]]*tblData[[#This Row],[Unit Cost]] -> 0
A11: Yes | B11: Yes | C11: Light | D11: 25 | F11: Warehouse | G11: =IFERROR(INDEX(Form!E$60:E$159,MATCH(tblData[[#This Row],[Type of Business]]&"-"&tblData[[#This Row],[Usage]],Form!B$60:B$159,0)),"") ->  | H11: 90578 | I11: Medium Metal SC, No Meds, 94 pcs. | J11: =IF(AND(INDIRECT("one"&tblData[[#This Row],[Type of Business]])="ü",eightA=IF(tblData[[#This Row],[Medications]]="Yes","ü",""),thirteenA=IF(tblData[[#This Row],[SmartCompliance]]="Yes","ü","")),INDIRECT("six"&tblData[[#This Row],[Type of Business]]&tblData[[#This Row],[Usage]]),0) -> 0 | K11: https://www.firstaidonly.com/medium-metal-smart-compliance-cabinet-ansi-a-without-medications.html?___store=fao | L11: 57.51 | M11: =tblData[[#This Row],[Qty]]*tblData[[#This Row],[Unit Cost]] -> 0
A12: Yes | B12: Yes | C12: Heavy | D12: 150 | F12: FoodService | G12: =IFERROR(INDEX(Form!E$60:E$159,MATCH(tblData[[#This Row],[Type of Business]]&"-"&tblData[[#This Row],[Usage]],Form!B$60:B$159,0)),"") ->  | H12: 90830 | I12: XL Metal SC with Meds, 937 pcs. | J12: =IF(AND(INDIRECT("one"&tblData[[#This Row],[Type of Business]])="ü",eightA=IF(tblData[[#This Row],[Medications]]="Yes","ü",""),thirteenA=IF(tblData[[#This Row],[SmartCompliance]]="Yes","ü","")),INDIRECT("six"&tblData[[#This Row],[Type of Business]]&tblData[[#This Row],[Usage]]),0) -> 0 | K12: https://www.firstaidonly.com/xl-smartcompliance-food-service-cabinet-with-medications-metal.html?___store=fao | L12: 191.83 | M12: =tblData[[#This Row],[Qty]]*tblData[[#This Row],[Unit Cost]] -> 0
A13: Yes | B13: Yes | C13: Medium | D13: 50 | F13: FoodService | G13: =IFERROR(INDEX(Form!E$60:E$159,MATCH(tblData[[#This Row],[Type of Business]]&"-"&tblData[[#This Row],[Usage]],Form!B$60:B$159,0)),"") ->  | H13: 746005 | I13: Large Metal SC with Meds, 289 pcs. | J13: =IF(AND(INDIRECT("one"&tblData[[#This Row],[Type of Business]])="ü",eightA=IF(tblData[[#This Row],[Medications]]="Yes","ü",""),thirteenA=IF(tblData[[#This Row],[SmartCompliance]]="Yes","ü","")),INDIRECT("six"&tblData[[#This Row],[Type of Business]]&tblData[[#This Row],[Usage]]),0) -> 0 | K13: https://www.firstaidonly.com/large-metal-smart-compliance-food-service-first-aid-cabinet-ansi-a-compliant-with-medication.html?___store=fao | L13: 86.29 | M13: =tblData[[#This Row],[Qty]]*tblData[[#This Row],[Unit Cost]] -> 0
A14: Yes | B14: Yes | C14: Light | D14: 25 | F14: FoodService | G14: =IFERROR(INDEX(Form!E$60:E$159,MATCH(tblData[[#This Row],[Type of Business]]&"-"&tblData[[#This Row],[Usage]],Form!B$60:B$159,0)),"") ->  | H14: 90578 | I14: Medium Metal SC, No Meds, 94 pcs. | J14: =IF(AND(INDIRECT("one"&tblData[[#This Row],[Type of Business]])="ü",eightA=IF(tblData[[#This Row],[Medications]]="Yes","ü",""),thirteenA=IF(tblData[[#This Row],[SmartCompliance]]="Yes","ü","")),INDIRECT("six"&tblData[[#This Row],[Type of Business]]&tblData[[#This Row],[Usage]]),0) -> 0 | K14: https://www.firstaidonly.com/medium-metal-smart-compliance-cabinet-ansi-a-without-medications.html?___store=fao | L14: 57.51 | M14: =tblData[[#This Row],[Qty]]*tblData[[#This Row],[Unit Cost]] -> 0
A15: Yes | B15: No | C15: Heavy | D15: 150 | F15: Office | G15: =IFERROR(INDEX(Form!E$60:E$159,MATCH(tblData[[#This Row],[Type of Business]]&"-"&tblData[[#This Row],[Usage]],Form!B$60:B$159,0)),"") -> 0 | H15: 90829 | I15: XL Metal SC No Meds, 654 pcs. | J15: =IF(AND(INDIRECT("one"&tblData[[#This Row],[Type of Business]])="ü",eightA=IF(tblData[[#This Row],[Medications]]="Yes","ü",""),thirteenA=IF(tblData[[#This Row],[SmartCompliance]]="Yes","ü","")),INDIRECT("six"&tblData[[#This Row],[Type of Business]]&tblData[[#This Row],[Usage]]),0) -> 1 | K15: https://www.firstaidonly.com/xl-smartcompliance-general-business-first-aid-cabinet-metal.html?___store=fao | L15: 191.83 | M15: =tblData[[#This Row],[Qty]]*tblData[[#This Row],[Unit Cost]] -> 191.83
A16: Yes | B16: No | C16: Medium | D16: 50 | F16: Office | G16: =IFERROR(INDEX(Form!E$60:E$159,MATCH(tblData[[#This Row],[Type of Business]]&"-"&tblData[[#This Row],[Usage]],Form!B$60:B$159,0)),"") ->  | H16: 1001-FAE-0103 | I16: Large Plastic SC No Meds, 206 pcs. | J16: =IF(AND(INDIRECT("one"&tblData[[#This Row],[Type of Business]])="ü",eightA=IF(tblData[[#This Row],[Medications]]="Yes","ü",""),thirteenA=IF(tblData[[#This Row],[SmartCompliance]]="Yes","ü","")),INDIRECT("six"&tblData[[#This Row],[Type of Business]]&tblData[[#This Row],[Usage]]),0) -> 0 | K16: https://www.firstaidonly.com/large-smart-compliance-general-workplace-first-aid-plastic-cabinet-with-pain-relief.html?___store=fao | L16: 59.25 | M16: =tblData[[#This Row],[Qty]]*tblData[[#This Row],[Unit Cost]] -> 0
A17: Yes | B17: No | C17: Light | D17: 25 | F17: Office | G17: =IFERROR(INDEX(Form!E$60:E$159,MATCH(tblData[[#This Row],[Type of Business]]&"-"&tblData[[#This Row],[Usage]],Form!B$60:B$159,0)),"") -> 0 | H17: 90578 | I17: Medium Metal SC, No Meds, 94 pcs. | J17: =IF(AND(INDIRECT("one"&tblData[[#This Row],[Type of Business]])="ü",eightA=IF(tblData[[#This Row],[Medications]]="Yes","ü",""),thirteenA=IF(tblData[[#This Row],[SmartCompliance]]="Yes","ü","")),INDIRECT("six"&tblData[[#This Row],[Type of Business]]&tblData[[#This Row],[Usage]]),0) -> 1 | K17: https://www.firstaidonly.com/medium-metal-smart-compliance-cabinet-ansi-a-without-medications.html?___store=fao | L17: 57.51 | M17: =tblData[[#This Row],[Qty]]*tblData[[#This Row],[Unit Cost]] -> 57.51
A18: Yes | B18: No | C18: Medium | D18: 50 | F18: LightManufacturing | G18: =IFERROR(INDEX(Form!E$60:E$159,MATCH(tblData[[#This Row],[Type of Business]]&"-"&tblData[[#This Row],[Usage]],Form!B$60:B$159,0)),"") ->  | H18: 746004 | I18: Large Metal SC No Meds, 202 pcs. | J18: =IF(AND(INDIRECT("one"&tblData[[#This Row],[Type of Business]])="ü",eightA=IF(tblData[[#This Row],[Medications]]="Yes","ü",""),thirteenA=IF(tblData[[#This Row],[SmartCompliance]]="Yes","ü","")),INDIRECT("six"&tblData[[#This Row],[Type of Business]]&tblData[[#This Row],[Usage]]),0) -> 0 | K18: https://www.firstaidonly.com/large-metal-smart-compliance-first-aid-cabinet-ansi-a-compliant-without-medications.html?___store=fao | L18: 86.29 | M18: =tblData[[#This Row],[Qty]]*tblData[[#This Row],[Unit Cost]] -> 0
A19: Yes | B19: No | C19: Light | D19: 25 | F19: LightManufacturing | G19: =IFERROR(INDEX(Form!E$60:E$159,MATCH(tblData[[#This Row],[Type of Business]]&"-"&tblData[[#This Row],[Usage]],Form!B$60:B$159,0)),"") ->  | H19: 90578 | I19: Medium Metal SC, No Meds, 94 pcs. | J19: =IF(AND(INDIRECT("one"&tblData[[#This Row],[Type of Business]])="ü",eightA=IF(tblData[[#This Row],[Medications]]="Yes","ü",""),thirteenA=IF(tblData[[#This Row],[SmartCompliance]]="Yes","ü","")),INDIRECT("six"&tblData[[#This Row],[Type of Business]]&tblData[[#This Row],[Usage]]),0) -> 0 | K19: https://www.firstaidonly.com/medium-metal-smart-compliance-cabinet-ansi-a-without-medications.html?___store=fao | L19: 57.51 | M19: =tblData[[#This Row],[Qty]]*tblData[[#This Row],[Unit Cost]] -> 0
A20: Yes | B20: No | C20: VeryHeavy | D20: 200 | F20: HeavyManufacturing | G20: =IFERROR(INDEX(Form!E$60:E$159,MATCH(tblData[[#This Row],[Type of Business]]&"-"&tblData[[#This Row],[Usage]],Form!B$60:B$159,0)),"") ->  | H20: 90833 | I20: XXL Metal SC No Meds, 728 pcs. | J20: =IF(AND(INDIRECT("one"&tblData[[#This Row],[Type of Business]])="ü",eightA=IF(tblData[[#This Row],[Medications]]="Yes","ü",""),thirteenA=IF(tblData[[#This Row],[SmartCompliance]]="Yes","ü","")),INDIRECT("six"&tblData[[#This Row],[Type of Business]]&tblData[[#This Row],[Usage]]),0) -> 0 | K20: https://www.firstaidonly.com/xxl-smartcompliance-general-business-first-aid-cabinet-without-medication.html?___store=fao | L20: 191.83 | M20: =tblData[[#This Row],[Qty]]*tblData[[#This Row],[Unit Cost]] -> 0
A21: Yes | B21: No | C21: Heavy | D21: 150 | F21: HeavyManufacturing | G21: =IFERROR(INDEX(Form!E$60:E$159,MATCH(tblData[[#This Row],[Type of Business]]&"-"&tblData[[#This Row],[Usage]],Form!B$60:B$159,0)),"") -> 0 | H21: 90829 | I21: XL Metal SC No Meds, 654 pcs. | J21: =IF(AND(INDIRECT("one"&tblData[[#This Row],[Type of Business]])="ü",eightA=IF(tblData[[#This Row],[Medications]]="Yes","ü",""),thirteenA=IF(tblData[[#This Row],[SmartCompliance]]="Yes","ü","")),INDIRECT("six"&tblData[[#This Row],[Type of Business]]&tblData[[#This Row],[Usage]]),0) -> 0 | K21: https://www.firstaidonly.com/xl-smartcompliance-general-business-first-aid-cabinet-metal.html?___store=fao | L21: 191.83 | M21: =tblData[[#This Row],[Qty]]*tblData[[#This Row],[Unit Cost]] -> 0
A22: Yes | B22: No | C22: Heavy | D22: 150 | F22: Warehouse | G22: =IFERROR(INDEX(Form!E$60:E$159,MATCH(tblData[[#This Row],[Type of Business]]&"-"&tblData[[#This Row],[Usage]],Form!B$60:B$159,0)),"") -> 0 | H22: 90829 | I22: XL Metal SC No Meds, 654 pcs. | J22: =IF(AND(INDIRECT("one"&tblData[[#This Row],[Type of Business]])="ü",eightA=IF(tblData[[#This Row],[Medications]]="Yes","ü",""),thirteenA=IF(tblData[[#This Row],[SmartCompliance]]="Yes","ü","")),INDIRECT("six"&tblData[[#This Row],[Type of Business]]&tblData[[#This Row],[Usage]]),0) -> 0 | K22: https://www.firstaidonly.com/xl-smartcompliance-general-business-first-aid-cabinet-metal.html?___store=fao | L22: 191.83 | M22: =tblData[[#This Row],[Qty]]*tblData[[#This Row],[Unit Cost]] -> 0
A23: Yes | B23: No | C23: Medium | D23: 50 | F23: Warehouse | G23: =IFERROR(INDEX(Form!E$60:E$159,MATCH(tblData[[#This Row],[Type of Business]]&"-"&tblData[[#This Row],[Usage]],Form!B$60:B$159,0)),"") ->  | H23: 746004 | I23: Large Metal SC No Meds, 202 pcs. | J23: =IF(AND(INDIRECT("one"&tblData[[#This Row],[Type of Business]])="ü",eightA=IF(tblData[[#This Row],[Medications]]="Yes","ü",""),thirteenA=IF(tblData[[#This Row],[SmartCompliance]]="Yes","ü","")),INDIRECT("six"&tblData[[#This Row],[Type of Business]]&tblData[[#This Row],[Usage]]),0) -> 0 | K23: https://www.firstaidonly.com/large-metal-smart-compliance-first-aid-cabinet-ansi-a-compliant-without-medications.html?___store=fao | L23: 86.29 | M23: =tblData[[#This Row],[Qty]]*tblData[[#This Row],[Unit Cost]] -> 0
A24: Yes | B24: No | C24: Light | D24: 25 | F24: Warehouse | G24: =IFERROR(INDEX(Form!E$60:E$159,MATCH(tblData[[#This Row],[Type of Business]]&"-"&tblData[[#This Row],[Usage]],Form!B$60:B$159,0)),"") ->  | H24: 90578 | I24: Medium Metal SC, No Meds, 94 pcs. | J24: =IF(AND(INDIRECT("one"&tblData[[#This Row],[Type of Business]])="ü",eightA=IF(tblData[[#This Row],[Medications]]="Yes","ü",""),thirteenA=IF(tblData[[#This Row],[SmartCompliance]]="Yes","ü","")),INDIRECT("six"&tblData[[#This Row],[Type of Business]]&tblData[[#This Row],[Usage]]),0) -> 0 | K24: https://www.firstaidonly.com/medium-metal-smart-compliance-cabinet-ansi-a-without-medications.html?___store=fao | L24: 57.51 | M24: =tblData[[#This Row],[Qty]]*tblData[[#This Row],[Unit Cost]] -> 0
A25: Yes | B25: No | C25: Heavy | D25: 150 | F25: FoodService | G25: =IFERROR(INDEX(Form!E$60:E$159,MATCH(tblData[[#This Row],[Type of Business]]&"-"&tblData[[#This Row],[Usage]],Form!B$60:B$159,0)),"") ->  | H25: 90831 | I25: XL Metal SC No Meds Meds, 697 pcs. | J25: =IF(AND(INDIRECT("one"&tblData[[#This Row],[Type of Business]])="ü",eightA=IF(tblData[[#This Row],[Medications]]="Yes","ü",""),thirteenA=IF(tblData[[#This Row],[SmartCompliance]]="Yes","ü","")),INDIRECT("six"&tblData[[#This Row],[Type of Business]]&tblData[[#This Row],[Usage]]),0) -> 0 | K25: https://www.firstaidonly.com/xl-smartcompliance-food-service-cabinet-without-medications-metal.html?___store=fao | L25: 191.83 | M25: =tblData[[#This Row],[Qty]]*tblData[[#This Row],[Unit Cost]] -> 0
A26: Yes | B26: No | C26: Medium | D26: 50 | F26: FoodService | G26: =IFERROR(INDEX(Form!E$60:E$159,MATCH(tblData[[#This Row],[Type of Business]]&"-"&tblData[[#This Row],[Usage]],Form!B$60:B$159,0)),"") ->  | H26: 746006 | I26: Large Metal SC No Meds Meds, 260 pcs. | J26: =IF(AND(INDIRECT("one"&tblData[[#This Row],[Type of Business]])="ü",eightA=IF(tblData[[#This Row],[Medications]]="Yes","ü",""),thirteenA=IF(tblData[[#This Row],[SmartCompliance]]="Yes","ü","")),INDIRECT("six"&tblData[[#This Row],[Type of Business]]&tblData[[#This Row],[Usage]]),0) -> 0 | K26: https://www.firstaidonly.com/large-metal-smart-compliance-food-service-first-aid-cabinet-ansi-a-compliant-without-medication.html?___store=fao | L26: 86.29 | M26: =tblData[[#This Row],[Qty]]*tblData[[#This Row],[Unit Cost]] -> 0
A27: Yes | B27: No | C27: Light | D27: 25 | F27: FoodService | G27: =IFERROR(INDEX(Form!E$60:E$159,MATCH(tblData[[#This Row],[Type of Business]]&"-"&tblData[[#This Row],[Usage]],Form!B$60:B$159,0)),"") ->  | H27: 90578 | I27: Medium Metal SC, No Meds, 94 pcs. | J27: =IF(AND(INDIRECT("one"&tblData[[#This Row],[Type of Business]])="ü",eightA=IF(tblData[[#This Row],[Medications]]="Yes","ü",""),thirteenA=IF(tblData[[#This Row],[SmartCompliance]]="Yes","ü","")),INDIRECT("six"&tblData[[#This Row],[Type of Business]]&tblData[[#This Row],[Usage]]),0) -> 0 | K27: https://www.firstaidonly.com/medium-metal-smart-compliance-cabinet-ansi-a-without-medications.html?___store=fao | L27: 57.51 | M27: =tblData[[#This Row],[Qty]]*tblData[[#This Row],[Unit Cost]] -> 0
A28: No | B28: Yes | C28: Heavy | D28: 100 | F28: Office | G28: =IFERROR(INDEX(Form!E$60:E$159,MATCH(tblData[[#This Row],[Type of Business]]&"-"&tblData[[#This Row],[Usage]],Form!B$60:B$159,0)),"") -> 0 | H28: 90575 | I28: 3-Shelf Metal, ANSI B, 676 pcs. with Meds | J28: =IF(AND(INDIRECT("one"&tblData[[#This Row],[Type of Business]])="ü",eightA=IF(tblData[[#This Row],[Medications]]="Yes","ü",""),thirteenA=IF(tblData[[#This Row],[SmartCompliance]]="Yes","ü","")),INDIRECT("six"&tblData[[#This Row],[Type of Business]]&tblData[[#This Row],[Usage]]),0) -> 0 | K28: https://www.firstaidonly.com/3-shelf-first-aid-ansi-b-metal-cabinet-with-medication.html?___store=fao | L28: 0 | M28: =tblData[[#This Row],[Qty]]*tblData[[#This Row],[Unit Cost]] -> 0
A29: No | B29: Yes | C29: Medium | D29: 75 | F29: Office | G29: =IFERROR(INDEX(Form!E$60:E$159,MATCH(tblData[[#This Row],[Type of Business]]&"-"&tblData[[#This Row],[Usage]],Form!B$60:B$159,0)),"") ->  | H29: 90572 | I29: 2-Shelf Metal ANSI A , 347 pieces with Meds | J29: =IF(AND(INDIRECT("one"&tblData[[#This Row],[Type of Business]])="ü",eightA=IF(tblData[[#This Row],[Medications]]="Yes","ü",""),thirteenA=IF(tblData[[#This Row],[SmartCompliance]]="Yes","ü","")),INDIRECT("six"&tblData[[#This Row],[Type of Business]]&tblData[[#This Row],[Usage]]),0) -> 0 | K29: https://www.firstaidonly.com/2-shelf-first-aid-ansi-a-metal-cabinet-with-medications.html?___store=fao | L29: 0 | M29: =tblData[[#This Row],[Qty]]*tblData[[#This Row],[Unit Cost]] -> 0
A30: No | B30: Yes | C30: Light | D30: 25 | F30: Office | G30: =IFERROR(INDEX(Form!E$60:E$159,MATCH(tblData[[#This Row],[Type of Business]]&"-"&tblData[[#This Row],[Usage]],Form!B$60:B$159,0)),"") -> 0 | H30: 223-U/FAO | I30: 25 Person Plastic Bulk, 106 pcs | J30: =IF(AND(INDIRECT("one"&tblData[[#This Row],[Type of Business]])="ü",eightA=IF(tblData[[#This Row],[Medications]]="Yes","ü",""),thirteenA=IF(tblData[[#This Row],[SmartCompliance]]="Yes","ü","")),INDIRECT("six"&tblData[[#This Row],[Type of Business]]&tblData[[#This Row],[Usage]]),0) -> 0 | K30: https://www.firstaidonly.com/25-person-first-aid-kit-plastic-case-with-dividers.html?___store=fao | L30: 0 | M30: =tblData[[#This Row],[Qty]]*tblData[[#This Row],[Unit Cost]] -> 0
A31: No | B31: Yes | C31: Medium | D31: 75 | F31: LightManufacturing | G31: =IFERROR(INDEX(Form!E$60:E$159,MATCH(tblData[[#This Row],[Type of Business]]&"-"&tblData[[#This Row],[Usage]],Form!B$60:B$159,0)),"") ->  | H31: 90572 | I31: 2-Shelf Metal ANSI A , 347 pieces with Meds | J31: =IF(AND(INDIRECT("one"&tblData[[#This Row],[Type of Business]])="ü",eightA=IF(tblData[[#This Row],[Medications]]="Yes","ü",""),thirteenA=IF(tblData[[#This Row],[SmartCompliance]]="Yes","ü","")),INDIRECT("six"&tblData[[#This Row],[Type of Business]]&tblData[[#This Row],[Usage]]),0) -> 0 | K31: https://www.firstaidonly.com/2-shelf-first-aid-ansi-a-metal-cabinet-with-medications.html?___store=fao | L31: 0 | M31: =tblData[[#This Row],[Qty]]*tblData[[#This Row],[Unit Cost]] -> 0 | P31: Qty | Q31: Part # | R31: Description
A32: No | B32: Yes | C32: Light | D32: 25 | F32: LightManufacturing | G32: =IFERROR(INDEX(Form!E$60:E$159,MATCH(tblData[[#This Row],[Type of Business]]&"-"&tblData[[#This Row],[Usage]],Form!B$60:B$159,0)),"") ->  | H32: 90563 | I32: 25 Person Plastic Bulk, 141 pcs | J32: =IF(AND(INDIRECT("one"&tblData[[#This Row],[Type of Business]])="ü",eightA=IF(tblData[[#This Row],[Medications]]="Yes","ü",""),thirteenA=IF(tblData[[#This Row],[SmartCompliance]]="Yes","ü","")),INDIRECT("six"&tblData[[#This Row],[Type of Business]]&tblData[[#This Row],[Usage]]),0) -> 0 | K32: https://www.firstaidonly.com/25-person-first-aid-kit-ansi-a-plastic-case-2.html?___store=fao | L32: 0 | M32: =tblData[[#This Row],[Qty]]*tblData[[#This Row],[Unit Cost]] -> 0 | P32: 1 | Q32: 90829 | R32: SmartCompliance XL, 654 pcs
A33: No | B33: Yes | C33: VeryHeavy | D33: 200 | F33: HeavyManufacturing | G33: =IFERROR(INDEX(Form!E$60:E$159,MATCH(tblData[[#This Row],[Type of Business]]&"-"&tblData[[#This Row],[Usage]],Form!B$60:B$159,0)),"") ->  | H33: 90577 | I33: 5-Shelf Metal ANSI B+, with Meds, 2134 pcs. | J33: =IF(AND(INDIRECT("one"&tblData[[#This Row],[Type of Business]])="ü",eightA=IF(tblData[[#This Row],[Medications]]="Yes","ü",""),thirteenA=IF(tblData[[#This Row],[SmartCompliance]]="Yes","ü","")),INDIRECT("six"&tblData[[#This Row],[Type of Business]]&tblData[[#This Row],[Usage]]),0) -> 0 | K33: https://www.firstaidonly.com/5-shelf-first-aid-ansi-b-metal-cabinet-with-medication.html?___store=fao | L33: 0 | M33: =tblData[[#This Row],[Qty]]*tblData[[#This Row],[Unit Cost]] -> 0 | P33: 2 | Q33: 90562 | R33: 25-Person Plastic, 89 pcs.
A34: No | B34: Yes | C34: Heavy | D34: 150 | F34: HeavyManufacturing | G34: =IFERROR(INDEX(Form!E$60:E$159,MATCH(tblData[[#This Row],[Type of Business]]&"-"&tblData[[#This Row],[Usage]],Form!B$60:B$159,0)),"") -> 0 | H34: 90576 | I34: 4-Shelf Metal ANSI B+, with Meds, 1461 pcs. | J34: =IF(AND(INDIRECT("one"&tblData[[#This Row],[Type of Business]])="ü",eightA=IF(tblData[[#This Row],[Medications]]="Yes","ü",""),thirteenA=IF(tblData[[#This Row],[SmartCompliance]]="Yes","ü","")),INDIRECT("six"&tblData[[#This Row],[Type of Business]]&tblData[[#This Row],[Usage]]),0) -> 0 | K34: https://www.firstaidonly.com/4-shelf-first-aid-ansi-b-metal-cabinet-with-medication.html?___store=fao | L34: 0 | M34: =tblData[[#This Row],[Qty]]*tblData[[#This Row],[Unit Cost]] -> 0 | P34: 1 | Q34: 3060 | R34: Bloodborne Pathogen Kit
A35: No | B35: Yes | C35: Heavy | D35: 100 | F35: Warehouse | G35: =IFERROR(INDEX(Form!E$60:E$159,MATCH(tblData[[#This Row],[Type of Business]]&"-"&tblData[[#This Row],[Usage]],Form!B$60:B$159,0)),"") -> 0 | H35: 90575 | I35: 3-Shelf Metal, ANSI B, 676 pcs. with Meds | J35: =IF(AND(INDIRECT("one"&tblData[[#This Row],[Type of Business]])="ü",eightA=IF(tblData[[#This Row],[Medications]]="Yes","ü",""),thirteenA=IF(tblData[[#This Row],[SmartCompliance]]="Yes","ü","")),INDIRECT("six"&tblData[[#This Row],[Type of Business]]&tblData[[#This Row],[Usage]]),0) -> 0 | K35: https://www.firstaidonly.com/3-shelf-first-aid-ansi-b-metal-cabinet-with-medication.html?___store=fao | L35: 0 | M35: =tblData[[#This Row],[Qty]]*tblData[[#This Row],[Unit Cost]] -> 0 | P35: 2 | Q35: 24-102 | R35: Eyewash Station, 16 oz. bottles
A36: No | B36: Yes | C36: Medium | D36: 75 | F36: Warehouse | G36: =IFERROR(INDEX(Form!E$60:E$159,MATCH(tblData[[#This Row],[Type of Business]]&"-"&tblData[[#This Row],[Usage]],Form!B$60:B$159,0)),"") ->  | H36: 90572 | I36: 2-Shelf Metal ANSI A , 347 pieces with Meds | J36: =IF(AND(INDIRECT("one"&tblData[[#This Row],[Type of Business]])="ü",eightA=IF(tblData[[#This Row],[Medications]]="Yes","ü",""),thirteenA=IF(tblData[[#This Row],[SmartCompliance]]="Yes","ü","")),INDIRECT("six"&tblData[[#This Row],[Type of Business]]&tblData[[#This Row],[Usage]]),0) -> 0 | K36: https://www.firstaidonly.com/2-shelf-first-aid-ansi-a-metal-cabinet-with-medications.html?___store=fao | L36: 0 | M36: =tblData[[#This Row],[Qty]]*tblData[[#This Row],[Unit Cost]] -> 0 | P36: 2 | Q36: 91150 | R36: Fleet Vehicle Kits, 89 pcs
A37: No | B37: Yes | C37: Light | D37: 25 | F37: Warehouse | G37: =IFERROR(INDEX(Form!E$60:E$159,MATCH(tblData[[#This Row],[Type of Business]]&"-"&tblData[[#This Row],[Usage]],Form!B$60:B$159,0)),"") ->  | H37: 224-U/FAO | I37: 25-Person Metal, Bulk, 106 pcs. | J37: =IF(AND(INDIRECT("one"&tblData[[#This Row],[Type of Business]])="ü",eightA=IF(tblData[[#This Row],[Medications]]="Yes","ü",""),thirteenA=IF(tblData[[#This Row],[SmartCompliance]]="Yes","ü","")),INDIRECT("six"&tblData[[#This Row],[Type of Business]]&tblData[[#This Row],[Usage]]),0) -> 0 | K37: https://www.firstaidonly.com/25-person-first-aid-kit-metal-case.html?___store=fao | L37: 0 | M37: =tblData[[#This Row],[Qty]]*tblData[[#This Row],[Unit Cost]] -> 0
A38: No | B38: No | C38: Heavy | D38: 100 | F38: Office | G38: =IFERROR(INDEX(Form!E$60:E$159,MATCH(tblData[[#This Row],[Type of Business]]&"-"&tblData[[#This Row],[Usage]],Form!B$60:B$159,0)),"") -> 0 | H38: 90790 | I38: 3-Shelf Metal, ANSI B, 676 pcs. No Meds | J38: =IF(AND(INDIRECT("one"&tblData[[#This Row],[Type of Business]])="ü",eightA=IF(tblData[[#This Row],[Medications]]="Yes","ü",""),thirteenA=IF(tblData[[#This Row],[SmartCompliance]]="Yes","ü","")),INDIRECT("six"&tblData[[#This Row],[Type of Business]]&tblData[[#This Row],[Usage]]),0) -> 0 | K38: https://www.firstaidonly.com/3-shelf-first-aid-ansi-b-first-aid-metal-cabinet-without-medications.html?___store=fao | L38: 0 | M38: =tblData[[#This Row],[Qty]]*tblData[[#This Row],[Unit Cost]] -> 0
A39: No | B39: No | C39: Medium | D39: 75 | F39: Office | G39: =IFERROR(INDEX(Form!E$60:E$159,MATCH(tblData[[#This Row],[Type of Business]]&"-"&tblData[[#This Row],[Usage]],Form!B$60:B$159,0)),"") ->  | H39: 90603 | I39: 2-Shelf Metal ANSI B+, 467 pieces No Meds | J39: =IF(AND(INDIRECT("one"&tblData[[#This Row],[Type of Business]])="ü",eightA=IF(tblData[[#This Row],[Medications]]="Yes","ü",""),thirteenA=IF(tblData[[#This Row],[SmartCompliance]]="Yes","ü","")),INDIRECT("six"&tblData[[#This Row],[Type of Business]]&tblData[[#This Row],[Usage]]),0) -> 0 | K39: https://www.firstaidonly.com/2-shelf-first-aid-ansi-b-metal-cabinet.html?___store=fao | L39: 0 | M39: =tblData[[#This Row],[Qty]]*tblData[[#This Row],[Unit Cost]] -> 0
A40: No | B40: No | C40: Light | D40: 25 | F40: Office | G40: =IFERROR(INDEX(Form!E$60:E$159,MATCH(tblData[[#This Row],[Type of Business]]&"-"&tblData[[#This Row],[Usage]],Form!B$60:B$159,0)),"") -> 0 | H40: 90562 | I40: 25 Person Plastic Bulk, 89 pcs, No Meds | J40: =IF(AND(INDIRECT("one"&tblData[[#This Row],[Type of Business]])="ü",eightA=IF(tblData[[#This Row],[Medications]]="Yes","ü",""),thirteenA=IF(tblData[[#This Row],[SmartCompliance]]="Yes","ü","")),INDIRECT("six"&tblData[[#This Row],[Type of Business]]&tblData[[#This Row],[Usage]]),0) -> 0 | K40: https://www.firstaidonly.com/25-person-first-aid-kit-ansi-a-plastic-case.html?___store=fao | L40: 0 | M40: =tblData[[#This Row],[Qty]]*tblData[[#This Row],[Unit Cost]] -> 0
A41: No | B41: No | C41: Medium | D41: 75 | F41: LightManufacturing | G41: =IFERROR(INDEX(Form!E$60:E$159,MATCH(tblData[[#This Row],[Type of Business]]&"-"&tblData[[#This Row],[Usage]],Form!B$60:B$159,0)),"") ->  | H41: 90603 | I41: 2-Shelf Metal ANSI B+, 467 pieces No Meds | J41: =IF(AND(INDIRECT("one"&tblData[[#This Row],[Type of Business]])="ü",eightA=IF(tblData[[#This Row],[Medications]]="Yes","ü",""),thirteenA=IF(tblData[[#This Row],[SmartCompliance]]="Yes","ü","")),INDIRECT("six"&tblData[[#This Row],[Type of Business]]&tblData[[#This Row],[Usage]]),0) -> 0 | K41: https://www.firstaidonly.com/2-shelf-first-aid-ansi-b-metal-cabinet.html?___store=fao | L41: 0 | M41: =tblData[[#This Row],[Qty]]*tblData[[#This Row],[Unit Cost]] -> 0
A42: No | B42: No | C42: Light | D42: 25 | F42: LightManufacturing | G42: =IFERROR(INDEX(Form!E$60:E$159,MATCH(tblData[[#This Row],[Type of Business]]&"-"&tblData[[#This Row],[Usage]],Form!B$60:B$159,0)),"") ->  | H42: 90562 | I42: 25 Person Plastic Bulk, 89 pcs | J42: =IF(AND(INDIRECT("one"&tblData[[#This Row],[Type of Business]])="ü",eightA=IF(tblData[[#This Row],[Medications]]="Yes","ü",""),thirteenA=IF(tblData[[#This Row],[SmartCompliance]]="Yes","ü","")),INDIRECT("six"&tblData[[#This Row],[Type of Business]]&tblData[[#This Row],[Usage]]),0) -> 0 | K42: https://www.firstaidonly.com/25-person-first-aid-kit-ansi-a-plastic-case.html?___store=fao | L42: 0 | M42: =tblData[[#This Row],[Qty]]*tblData[[#This Row],[Unit Cost]] -> 0
A43: No | B43: No | C43: VeryHeavy | D43: 200 | F43: HeavyManufacturing | G43: =IFERROR(INDEX(Form!E$60:E$159,MATCH(tblData[[#This Row],[Type of Business]]&"-"&tblData[[#This Row],[Usage]],Form!B$60:B$159,0)),"") ->  | H43: 90577 | I43: 5-Shelf Metal ANSI B+, WITH Meds, 2134 pcs. | J43: =IF(AND(INDIRECT("one"&tblData[[#This Row],[Type of Business]])="ü",eightA=IF(tblData[[#This Row],[Medications]]="Yes","ü",""),thirteenA=IF(tblData[[#This Row],[SmartCompliance]]="Yes","ü","")),INDIRECT("six"&tblData[[#This Row],[Type of Business]]&tblData[[#This Row],[Usage]]),0) -> 0 | K43: https://www.firstaidonly.com/5-shelf-first-aid-ansi-b-metal-cabinet-with-medication.html?___store=fao | L43: 0 | M43: =tblData[[#This Row],[Qty]]*tblData[[#This Row],[Unit Cost]] -> 0
A44: No | B44: No | C44: Heavy | D44: 150 | F44: HeavyManufacturing | G44: =IFERROR(INDEX(Form!E$60:E$159,MATCH(tblData[[#This Row],[Type of Business]]&"-"&tblData[[#This Row],[Usage]],Form!B$60:B$159,0)),"") -> 0 | H44: 90576 | I44: 4-Shelf Metal ANSI B+, WITH Meds, 1461 pcs. | J44: =IF(AND(INDIRECT("one"&tblData[[#This Row],[Type of Business]])="ü",eightA=IF(tblData[[#This Row],[Medications]]="Yes","ü",""),thirteenA=IF(tblData[[#This Row],[SmartCompliance]]="Yes","ü","")),INDIRECT("six"&tblData[[#This Row],[Type of Business]]&tblData[[#This Row],[Usage]]),0) -> 0 | K44: https://www.firstaidonly.com/4-shelf-first-aid-ansi-b-metal-cabinet-with-medication.html?___store=fao | L44: 0 | M44: =tblData[[#This Row],[Qty]]*tblData[[#This Row],[Unit Cost]] -> 0
A45: No | B45: No | C45: Heavy | D45: 100 | F45: Warehouse | G45: =IFERROR(INDEX(Form!E$60:E$159,MATCH(tblData[[#This Row],[Type of Business]]&"-"&tblData[[#This Row],[Usage]],Form!B$60:B$159,0)),"") -> 0 | H45: 90790 | I45: 3-Shelf Metal, ANSI B, 676 pcs. No Meds | J45: =IF(AND(INDIRECT("one"&tblData[[#This Row],[Type of Business]])="ü",eightA=IF(tblData[[#This Row],[Medications]]="Yes","ü",""),thirteenA=IF(tblData[[#This Row],[SmartCompliance]]="Yes","ü","")),INDIRECT("six"&tblData[[#This Row],[Type of Business]]&tblData[[#This Row],[Usage]]),0) -> 0 | K45: https://www.firstaidonly.com/3-shelf-first-aid-ansi-b-first-aid-metal-cabinet-without-medications.html?___store=fao | L45: 0 | M45: =tblData[[#This Row],[Qty]]*tblData[[#This Row],[Unit Cost]] -> 0
A46: No | B46: No | C46: Medium | D46: 75 | F46: Warehouse | G46: =IFERROR(INDEX(Form!E$60:E$159,MATCH(tblData[[#This Row],[Type of Business]]&"-"&tblData[[#This Row],[Usage]],Form!B$60:B$159,0)),"") ->  | H46: 90603 | I46: 2-Shelf Metal ANSI B+, 467 pieces No Meds | J46: =IF(AND(INDIRECT("one"&tblData[[#This Row],[Type of Business]])="ü",eightA=IF(tblData[[#This Row],[Medications]]="Yes","ü",""),thirteenA=IF(tblData[[#This Row],[SmartCompliance]]="Yes","ü","")),INDIRECT("six"&tblData[[#This Row],[Type of Business]]&tblData[[#This Row],[Usage]]),0) -> 0 | K46: https://www.firstaidonly.com/2-shelf-first-aid-ansi-b-metal-cabinet.html?___store=fao | L46: 0 | M46: =tblData[[#This Row],[Qty]]*tblData[[#This Row],[Unit Cost]] -> 0
A47: No | B47: No | C47: Light | D47: 25 | F47: Warehouse | G47: =IFERROR(INDEX(Form!E$60:E$159,MATCH(tblData[[#This Row],[Type of Business]]&"-"&tblData[[#This Row],[Usage]],Form!B$60:B$159,0)),"") ->  | H47: 90560 | I47: 25 Person Metal Bulk, 89 pcs, No Meds | J47: =IF(AND(INDIRECT("one"&tblData[[#This Row],[Type of Business]])="ü",eightA=IF(tblData[[#This Row],[Medications]]="Yes","ü",""),thirteenA=IF(tblData[[#This Row],[SmartCompliance]]="Yes","ü","")),INDIRECT("six"&tblData[[#This Row],[Type of Business]]&tblData[[#This Row],[Usage]]),0) -> 0 | K47: https://www.firstaidonly.com/25-person-first-aid-kit-ansi-a-metal-case.html?___store=fao | L47: 0 | M47: =tblData[[#This Row],[Qty]]*tblData[[#This Row],[Unit Cost]] -> 0
C48: Advanced | F48: BBPKit | G48: =IFERROR(INDEX(Form!E$60:E$159,MATCH(tblData[[#This Row],[Type of Business]]&"-"&tblData[[#This Row],[Usage]],Form!B$60:B$159,0)),"") ->  | H48: 3060 | I48: BBP and Protective Apparel in Plastic case - 32 pcs. | J48: =INDIRECT(tblData[[#This Row],[Type of Business]]&tblData[[#This Row],[Usage]]) -> 1 | K48: N/A | L48: 0 | M48: =tblData[[#This Row],[Qty]]*tblData[[#This Row],[Unit Cost]] -> 0
C49: Basic | F49: BBPKit | G49: =IFERROR(INDEX(Form!E$60:E$159,MATCH(tblData[[#This Row],[Type of Business]]&"-"&tblData[[#This Row],[Usage]],Form!B$60:B$159,0)),"") ->  | H49: 214-U/FAO | I49: BBP Spill Clean-Up Kit with Apparel- 23 pcs | J49: =INDIRECT(tblData[[#This Row],[Type of Business]]&tblData[[#This Row],[Usage]]) -> 1 | K49: https://www.firstaidonly.com/wall-mount-blood-borne-pathogen-bbp-and-bodily-fluid-spill-kit-in-plastic-carry-case-osha-24-pieces-white.html?___store=fao | L49: 0 | M49: =tblData[[#This Row],[Qty]]*tblData[[#This Row],[Unit Cost]] -> 0
C50: Advanced | F50: FirstResponderKit | G50: =IFERROR(INDEX(Form!E$60:E$159,MATCH(tblData[[#This Row],[Type of Business]]&"-"&tblData[[#This Row],[Usage]],Form!B$60:B$159,0)),"") ->  | H50: 91146 | I50: Enhanced First Responder Kit, 168 pcs. Bleed & Burn | J50: =INDIRECT(tblData[[#This Row],[Type of Business]]&tblData[[#This Row],[Usage]]) -> 1 | K50: N/A | L50: 0 | M50: =tblData[[#This Row],[Qty]]*tblData[[#This Row],[Unit Cost]] -> 0
C51: Basic | F51: FirstResponderKit | G51: =IFERROR(INDEX(Form!E$60:E$159,MATCH(tblData[[#This Row],[Type of Business]]&"-"&tblData[[#This Row],[Usage]],Form!B$60:B$159,0)),"") ->  | H51: 520-FR | I51: Large First Responder Bag, 158 pcs. | J51: =INDIRECT(tblData[[#This Row],[Type of Business]]&tblData[[#This Row],[Usage]]) -> 0 | K51: https://www.firstaidonly.com/first-responder-kit-large-158-piece-bag.html?___store=fao | L51: 0 | M51: =tblData[[#This Row],[Qty]]*tblData[[#This Row],[Unit Cost]] -> 0
C52: Advanced | F52: EyewashStation | G52: =IFERROR(INDEX(Form!E$60:E$159,MATCH(tblData[[#This Row],[Type of Business]]&"-"&tblData[[#This Row],[Usage]],Form!B$60:B$159,0)),"") ->  | H52: 24-300 | I52: Double 32 oz. Station, Screw Cap | J52: =INDIRECT(tblData[[#This Row],[Type of Business]]&tblData[[#This Row],[Usage]]) -> 0 | K52: https://www.firstaidonly.com/eyewash-station-double-32-oz-screw-cap-bottle.html?___store=fao | L52: 0 | M52: =tblData[[#This Row],[Qty]]*tblData[[#This Row],[Unit Cost]] -> 0
C53: Basic | F53: EyewashStation | G53: =IFERROR(INDEX(Form!E$60:E$159,MATCH(tblData[[#This Row],[Type of Business]]&"-"&tblData[[#This Row],[Usage]],Form!B$60:B$159,0)),"") ->  | H53: 24-102 | I53: Double 16 oz. Station, Screw Cap | J53: =INDIRECT(tblData[[#This Row],[Type of Business]]&tblData[[#This Row],[Usage]]) -> 1 | K53: https://www.firstaidonly.com/eyewash-station-double-16-oz-screw-cap-bottle.html?___store=fao | L53: 0 | M53: =tblData[[#This Row],[Qty]]*tblData[[#This Row],[Unit Cost]] -> 0
C54: Advanced | F54: BurnKit | G54: =IFERROR(INDEX(Form!E$60:E$159,MATCH(tblData[[#This Row],[Type of Business]]&"-"&tblData[[#This Row],[Usage]],Form!B$60:B$159,0)),"") ->  | H54: 36003 | I54: WaterJel Large Burn Kit, 12 pcs. | J54: =INDIRECT(tblData[[#This Row],[Type of Business]]&tblData[[#This Row],[Usage]]) -> 0 | K54: https://www.firstaidonly.com/waterjel-large-burn-kit-fabric-case.html?___store=fao | L54: 0 | M54: =tblData[[#This Row],[Qty]]*tblData[[#This Row],[Unit Cost]] -> 0
C55: Basic | F55: BurnKit | G55: =IFERROR(INDEX(Form!E$60:E$159,MATCH(tblData[[#This Row],[Type of Business]]&"-"&tblData[[#This Row],[Usage]],Form!B$60:B$159,0)),"") ->  | H55: 440-O/FAO | I55: Burn Care Kit, 11 pcs. | J55: =INDIRECT(tblData[[#This Row],[Type of Business]]&tblData[[#This Row],[Usage]]) -> 0 | K55: https://www.firstaidonly.com/burn-care-kit-plastic-case.html?___store=fao | L55: 0 | M55: =tblData[[#This Row],[Qty]]*tblData[[#This Row],[Unit Cost]] -> 0
C56: Advanced | F56: BleedingControl | G56: =IFERROR(INDEX(Form!E$60:E$159,MATCH(tblData[[#This Row],[Type of Business]]&"-"&tblData[[#This Row],[Usage]],Form!B$60:B$159,0)),"") ->  | H56: 91137 | I56: Enhanced Pro Bleeding Control Bag | J56: =INDIRECT(tblData[[#This Row],[Type of Business]]&tblData[[#This Row],[Usage]]) -> 0 | K56: https://www.firstaidonly.com/enhanced-pro-bleeding-control-kit.html?___store=fao | L56: 0 | M56: =tblData[[#This Row],[Qty]]*tblData[[#This Row],[Unit Cost]] -> 0
C57: Basic | F57: BleedingControl | G57: =IFERROR(INDEX(Form!E$60:E$159,MATCH(tblData[[#This Row],[Type of Business]]&"-"&tblData[[#This Row],[Usage]],Form!B$60:B$159,0)),"") ->  | H57: 91135 | I57: Basic Pro Bleeding Control Pouch | J57: =INDIRECT(tblData[[#This Row],[Type of Business]]&tblData[[#This Row],[Usage]]) -> 0 | K57: https://www.firstaidonly.com/basic-pro-bleeding-control-kit.html?___store=fao | L57: 0 | M57: =tblData[[#This Row],[Qty]]*tblData[[#This Row],[Unit Cost]] -> 0
C58: Advanced | F58: FleetVehicles | G58: =IFERROR(INDEX(Form!E$60:E$159,MATCH(tblData[[#This Row],[Type of Business]]&"-"&tblData[[#This Row],[Usage]],Form!B$60:B$159,0)),"") ->  | H58: 90672 | I58: 25-person Metal, ANSI A, 114 pcs., Medications | J58: =INDIRECT(tblData[[#This Row],[Type of Business]]&tblData[[#This Row],[Usage]]) -> 1 | K58: https://www.firstaidonly.com/25-person-vehicle-ansi-a-first-aid-kit-metal-and-weatherproof-case.html?___store=fao | L58: 0 | M58: =tblData[[#This Row],[Qty]]*tblData[[#This Row],[Unit Cost]] -> 0
C59: Basic | F59: FleetVehicles | G59: =IFERROR(INDEX(Form!E$60:E$159,MATCH(tblData[[#This Row],[Type of Business]]&"-"&tblData[[#This Row],[Usage]],Form!B$60:B$159,0)),"") ->  | H59: 91150 | I59: 10 person Bulk Plastic Case,89 pcs., NO MEDS | J59: =INDIRECT(tblData[[#This Row],[Type of Business]]&tblData[[#This Row],[Usage]]) -> 0 | K59: https://www.firstaidonly.com/10-person-plastic-light-duty-vehicle-first-aid-kit.html?___store=fao | L59: 0 | M59: =tblData[[#This Row],[Qty]]*tblData[[#This Row],[Unit Cost]] -> 0
C60: All | E60: 45 | F60: Shelf | G60: =IFERROR(INDEX(Form!E$60:E$159,MATCH("4or5 Shelf",Form!B$60:B$159,0)),"") -> 0 | H60: 91131 | I60: RetroFit Grid, ANSI B, No Meds, 218 pcs | J60: =IF(oneFoodService="",INDIRECT("six"&tblData[[#This Row],[Shelf]]&tblData[[#This Row],[Type of Business]]),0) -> 1 | K60: https://www.firstaidonly.com/smartcompliance-retrofit-business-without-medications-50-person-ansi-compliant.html?___store=fao | L60: 0 | M60: =tblData[[#This Row],[Qty]]*tblData[[#This Row],[Unit Cost]] -> 0
C61: All | E61: 3 | F61: Shelf | G61: =IFERROR(INDEX(Form!E$60:E$159,MATCH("3 Shelf",Form!B$60:B$159,0)),"") -> 0 | H61: 91172 | I61: RetroFit Grid, ANSI A, No Meds, 108 pcs | J61: =INDIRECT("six"&tblData[[#This Row],[Shelf]]&tblData[[#This Row],[Type of Business]]) -> 0 | K61: N/A | L61: 0 | M61: =tblData[[#This Row],[Qty]]*tblData[[#This Row],[Unit Cost]] -> 0
C62: FoodService | E62: 45 | F62: Shelf | G62: =IFERROR(INDEX(Form!E$60:E$159,MATCH("4or5 Shelf",Form!B$60:B$159,0)),"") -> 0 | H62: 91132 | I62: RetroFit Grid, ANSI B, No Meds, 262 pcs | J62: =IF(INDIRECT("one" & tblData[[#This Row],[Usage]])="ü",INDIRECT("six"&tblData[[#This Row],[Shelf]]&tblData[[#This Row],[Type of Business]]),0) -> 0 | K62: https://www.firstaidonly.com/smartcompliance-retrofit-food-service-without-medications-50-person-ansi-compliant.html?___store=fao | L62: 0 | M62: =tblData[[#This Row],[Qty]]*tblData[[#This Row],[Unit Cost]] -> 0

Sheet Filters (hidden)
A1: Type of Business | B1: SmartCompliance | C1: Medications | D1: Qty | E1: Usage | F1: Shelf
A2: =IF(Form!C11="ü",Form!D11,"IGNORE") -> Office | B2: =IF(thirteenA="ü","Yes","No") -> Yes | C2: =IF(eightA="ü","Yes","No") -> No | D2: >0 | E2: Heavy
A3: =IF(Form!C11="ü",Form!D11,"IGNORE") -> Office | B3: Yes | C3: No | D3: >0 | E3: Medium
A4: =IF(Form!C11="ü",Form!D11,"IGNORE") -> Office | B4: Yes | C4: No | D4: >0 | E4: Light
A5: =IF(Form!C12="ü",SUBSTITUTE(Form!D12," ",""),"IGNORE") -> IGNORE | B5: Yes | C5: No | D5: >0 | E5: Medium
A6: =IF(Form!C12="ü",SUBSTITUTE(Form!D12," ",""),"IGNORE") -> IGNORE | B6: Yes | C6: No | D6: >0 | E6: Light
A7: =IF(Form!C13="ü",SUBSTITUTE(Form!D13," ",""),"IGNORE") -> IGNORE | B7: Yes | C7: No | D7: >0 | E7: VeryHeavy
A8: =IF(Form!C13="ü",SUBSTITUTE(Form!D13," ",""),"IGNORE") -> IGNORE | B8: Yes | C8: No | D8: >0 | E8: Heavy
A9: =IF(Form!F11="ü",Form!G11,"IGNORE") -> IGNORE | B9: Yes | C9: No | D9: >0 | E9: Heavy
A10: =IF(Form!F11="ü",Form!G11,"IGNORE") -> IGNORE | B10: Yes | C10: No | D10: >0 | E10: Medium
A11: =IF(Form!F11="ü",Form!G11,"IGNORE") -> IGNORE | B11: Yes | C11: No | D11: >0 | E11: Light
A12: =IF(Form!F12="ü",SUBSTITUTE(Form!G12," ",""),"IGNORE") -> IGNORE | B12: Yes | C12: No | D12: >0 | E12: Heavy
A13: =IF(Form!F12="ü",SUBSTITUTE(Form!G12," ",""),"IGNORE") -> IGNORE | B13: Yes | C13: No | D13: >0 | E13: Medium
A14: =IF(Form!F12="ü",SUBSTITUTE(Form!G12," ",""),"IGNORE") -> IGNORE | B14: Yes | C14: No | D14: >0 | E14: Light
A15: BBPKit | D15: >0 | E15: Basic
A16: BBPKit | D16: >0 | E16: Advanced
A17: FirstResponderKit | D17: >0 | E17: Basic
A18: FirstResponderKit | D18: >0 | E18: Advanced
A19: EyewashStation | D19: >0 | E19: Basic
A20: EyewashStation | D20: >0 | E20: Advanced
A21: BurnKit | D21: >0 | E21: Basic
A22: BurnKit | D22: >0 | E22: Advanced
A23: BleedingControl | D23: >0 | E23: Basic
A24: BleedingControl | D24: >0 | E24: Advanced
A25: FleetVehicles | D25: >0 | E25: Basic
A26: FleetVehicles | D26: >0 | E26: Advanced
A27: Shelf | D27: >0 | F27: 3
A28: Shelf | D28: >0 | F28: 45

Sheet OSHA Rules
A2: OSHA Rules
A4: First Aid Cabinet - OSHA Regulation | B4: Addendum Text: OSHA says “First aid supplies are required to be readily available under paragraph § 1910.151(b). An example of the minimal contents of a generic first aid kit is described in American National Standard (ANSI) Z308.1. First aid supplies must be readily available. This is generally considered to mean every floor in every building and separate kits for clean room, food manufacturing and/or food preparation areas. Employees should not have to travel more than 100 feet to secure adequate supplies
A5: Eyewash - OSHA Regulation | B5: Addendum Text: Eyewash stations are critical emergency safety equipment intended to mitigate eye injuries when control methods (i.e., eye glasses) do not prevent exposure to a physical or chemical irritant or biological agent. OSHA Federal Regulations part 1910.151(c) states: "Where the eyes may be exposed to injurious corrosive chemicals, suitable facilities for quick drenching or flushing of the eyes and body shall be provided within the work area for immediate emergency use. These corrosive chemicals include HIV and HBV research laboratories and production facilities and facilities where the eye may be splashed with solutions containing 0.1 percent or greater formaldehyde". Eyewash stations must be installed within 10 seconds walking time from the location of a hazard (approximately 55 feet), installed on the same level as the hazard (i.e. no stairs or ramps), and the path of travel from the hazard to the station should be free of obstructions and as straight as possible. For more serious potential eye injuries, ANSI Z358.1-2009 specifies that eyewash stations must be capable of delivering tepid flushing fluid to the eyes not less than 1.5 liters per minute (0.4 gallons per minute) for 15 minutes after a single movement and subsequent hands-free operation. Eyewash bottles are used where the hazard is a long distance from plumbed eyewash stations (i.e., an outside yard) or to help transport an injured worker to a treatment facility. Eyewash bottles are also ideal when there is a potential hazard to the eye but it is of minimal risk or severity and OSHA or ANSI doesn’t require it. (i.e., Allergens, sawdust or smoke)
A6: Burns (No specific OSHA rules but there are ANSI requirements | B6: The treatment of burns depends on the location and severity of the damage. Sunburns and small scalds can usually be treated at home. Deep or widespread burns need immediate medical attention. Burns are very painful. It is very important to apply a burn dressing to the burn area to prevent infection and soothe the victim’s pain. There are first aid supplies that can both soothe the pain and protect the wound from infection. For occupations that have the potential for experiencing a severe burn, these first aid kits have dedicated severe burn treatment supplies of items such as Burn Dressings, Burn Cream and Burn Gel:
A7: Bleeding Control Kits (No specific OSHA rules but there are numerous states considering legislation to make Bleeding Control kits mandatory in certain public buildings like schools. | B7: Addendum Text: Bleeding to death can happen very quickly. If the hemorrhaging isn’t stopped, a person can bleed to death in just five minutes. And if their injuries are severe, this timeline may be even shorter. That is why it’s important to give co-workers the tools to stop a bleeding event before professional help arrives. Many occupations or job activities have the potential for a severe bleeding event. These type of injuries might occur from handling sharp objects, fast moving machinery or saw blades, vehicle accidents and unfortunately gun-related events. Therefore Bleeding Control kits should be at every worksite. Some kits have the first aid tools to stop limb wounds with basic and advanced tourniquets while others have hemostatic blood-clotting gauze pads to stop bleeding fast on the torso or limbs
A8: Bloodborne Pathogen Kits - OSHA regulation | B8: Addendum Text: Bloodborne pathogens can be transmitted through the eyes, skin, nose or mouth, even under the skin if the skin is punctured. An extremely common disease caused by exposure is hepatitis B virus (HBV), hepatitis C virus (HCV), and human immunodeficiency virus (HIV). Bloodborne pathogens are microorganisms that can be found in the blood or other types of body fluids that can cause serious illness and even diseases. These pathogens can be transmitted through the eyes, skin, nose or mouth, even under the skin if the skin is punctured. An extremely common disease caused by exposure is hepatitis B virus (HBV), hepatitis C virus (HCV), and human immunodeficiency virus (HIV). Many times people carrying bloodborne pathogens may not even be aware that they are infected. OSHA adopted a policy in March 1992 (CFR 1910.1030) that was designed to limit exposure to bloodborne pathogens and various types of body fluids at the workplace. The standard covers any and all employers where there may be a reasonable chance of exposure to bloodborne pathogens. If through the normal course of an employee’s job function he or she could reasonably be expected to come into contact with potentially infectious bodily fluids (blood, urine, vomit, etc;), compliance with the Bloodborne Pathogens Standard of protection and training is required. At no cost to the employee, all employers must provide and require employees to use the protective clothing and equipment.
A9: Vehicle Kits, OSHA recommendation | B9: Addendum Text: In order to insure ready availability of first aid supplies to all employees while on the job, company vehicles should include first aid kits. The employee’s company-provided work vehicle is literally their “workplace” and is subject to OSHA regulations just as a facility would be. OSHA’s General Industry medical and first aid regulation mandates employers to ensure that “adequate first aid supplies [are] readily available” in the workplace. See 29 CFR 1910.151(b). An important facet of first aid pertains to its location. The first aid kit must be “readily available,” i.e. easy to access in the event of an emergency. This issue is often relatively simple at fixed facilities, but can become more complicated when employees work off-site or drive in company vehicles. In situations like these, employers cannot forget that a first aid kit should be “readily available.” Accordingly, if employers have, for example, delivery truck drivers, it is recommended that these employers equip their trucks with first aid kits. Most vehicle first aid kits are designated by the number of employees at a remote job site that the vehicle would drive to. For example a 50-person Vehicle first aid kit is for a vehicle that would typically visit one or more job sites with 50 persons working at those sites.

Sheet SC Cost Calculator (hidden)
B8: SmartCompliance First Aid Program Cost Calculator
D9: MSRP | E9: SmartCompliance Cabinet Size
B10: 1 | C10: How many first aid cabinets do you have in your facility? | D10: 468.94 | E10: XL - ANSI Class B+
B11: 426.4 | C11: Cabinet Cost (from table) | D11: 426.4 | E11: XL - ANSI Class B+
B12: =B10*B11 -> 426.4 | C12: Total Initial Investment with SmartCompliance | D12: 191.78 | E12: Large - ANSI Class A+
D13: 127.82 | E13: Medium - ANSI Class A
B14: =350*3 -> 1050 | C14: What is your quarterly (3 month) spend with your current first aid provider? | D14: 149.9 | E14: Retrofit - ANSI Class B 4 & 5-Shelf
B15: =B14/3 -> 350 | C15: Monthly Average | D15: 99.98 | E15: Retrofit - ANSI Class A 3-Shelf
D16: **Retrofit for existing cabinets**
B17: =B10*2.5*4.42 -> 11.05 | C17: Monthly Refill Average (2.5 Refills per Cabinet) | E17: End Users populate yellow cells
B19: =B12+(B17*2) -> 448.5 | C19: Three (3) Month Total with SmartCompliance | E19: Distributors populate cabinet pricing
B21: =B14-B19 -> 601.5 | C21: First Three (3) Month Savings with SmartCompliance | E21: Savings to be realized
B23: =B21+((B14*3)-(B17*9)) -> 3652.05 | C23: First Year Savings with SmartCompliance
B24: =((B14*4)-(B17*12)) -> 4067.4 | C24: Annual Savings with SmartCompliance
